{"text_format":"1","workbook":"xlsx","n_sheets":5,"sheets":["Audiovisuel","Son","Vidéo","Multisupports","Monosupport"],"not_rendered":{"charts":0,"images":0,"macros":0,"external_links":0,"defined_names":3,"comments":0,"pivot_tables":0},"unopened":[],"bounds":{"document_bytes":16777216,"sheet_cells":100000,"rows_first":2000,"rows_last":500,"rows_between":2000,"halvings":0,"cell_chars":16384,"cell_head_chars":4096},"cells_cut":0,"cells_raw":0,"read":"whole","date_system":"1900"}

{"sheet":"Audiovisuel","index":0,"n_rows":473,"n_cols":4,"rows_kept":473,"cut":false,"hidden":false,"merged":[]}
["Nombre de monographies audiovisuelles reçues par dépôt légal"]
["Nombre dépôts",2016,2017,2018]
["Son",8797,8230,7733]
["Vidéo",10273,10230,5770]
["Multimédias\nmultisupports",1605,1045,817]
["Multimédias\nmonosupport",1850,739,945]
["Source : Entrées dépôt légal",{"$f":"SUM(B3:B6)","v":22525},{"$f":"SUM(C3:C6)","v":20244},{"$f":"SUM(D3:D6)","v":15265}]
[]
[]
["Nombre de monographies audiovisuelles par grande classe thématique par année"]
["Classes thématiques",2016,2017,2018]
["Enregistrements sonores",{"$f":"SUM(B13:B23)","v":11871},{"$f":"SUM(C13:C23)","v":5487},5826]
["101 chanson francophone",878,374,407]
["102 chanson non francophone",143,74,114]
["103 jazz et blues",1387,614,471]
["104 musique classique",1604,534,630]
["105 musiques traditionnelles",254,59,93]
["106 rock",5824,3243,3329]
["107 variété instrumentale et vocale",812,186,153]
["108 autres musiques (musique de film, musique militaire...)",291,181,210]
["109 enregistrements parlés",404,125,309]
["110 sons naturels, bruitages",16,1,4]
["111 disques et cassettes pour enfants",258,96,106]
["Images animées",{"$f":"SUM(B25:B33)","v":4813},{"$f":"SUM(C25:C33)","v":4681},4210]
["201 philosophie, histoire, sciences de l'homme",755,487,555]
["202 droit, économie, politique",209,136,223]
["203 sciences et techniques",432,379,611]
["204 littérature et arts",302,214,508]
["205 vidéo musicale et spectacles vivants",335,334,290]
["206 publicité",106,10,133]
["207 fiction",2105,2577,1602]
["208 fiction jeunesse",429,408,180]
["209 vie pratique, sports, loisirs",140,136,108]
["Documents électroniques",{"$f":"SUM(B35:B48)","v":822},{"$f":"SUM(C35:C48)","v":361},453]
["301 généralités",11,1,3]
["302 informatique et logiciels",205,10,147]
["303 arts et lettres",22,3,4]
["304 histoire, géographie et cartographie",21,6,11]
["305 philosophie, psychologie, religion",3,1,4]
["306 droit, administration, politique, statistique",14,0,7]
["307 économie et commerce",0,0,0]
["308 formation et enseignement",84,22,37]
["309 jeunesse et ludo-éducatif",12,4,3]
["310 sciences pures",1,1,3]
["311 médecine, santé",2,0,3]
["312 sciences appliquées, industrie, agriculture",19,6,11]
["313 jeu vidéo",410,292,196]
["314 vie pratique, loisirs, sport",18,15,24]
["Multisupports",{"$f":"SUM(B50:B62)","v":758},{"$f":"SUM(C50:C62)","v":783},793]
["401 généralités, encyclopédies, dictionnaires, informatique",2,4,4]
["402 philosophie, psychologie, ésotérisme, phénomènes paranormaux",50,69,54]
["403 religion",16,11,14]
["404 sciences économiques, juridiques et sociales, éducation et enseignement",96,80,76]
["405 linguistique, méthodes de langue",124,105,135]
["406 sciences, agriculture, industrie",42,38,30]
["407 arts, arts du spectacle",54,43,46]
["408 musique",68,110,116]
["409 films de fiction",4,5,3]
["410 jeux, sports, vie pratique",25,31,38]
["411 littérature",31,43,50]
["412 histoire, biographies, géographie et voyages",49,33,40]
["413 fiction jeunesse",197,211,187]
["TOTAL",{"$f":"SUM(B49,B34,B24,B12)","v":18264},{"$f":"SUM(C49,C34,C24,C12)","v":11312},11282]
["Source : Bibliographie nationale française - Audiovisuel"]
[]
["Nombre de monographies audiovisuelles par genre audiovisuel et année"]
["Genres audiovisuels",2016,2017,2018]
["rock",5793,3418,3557]
["non fiction",2369,1558,2319]
["fiction",2694,3170,2141]
["chanson",2246,1029,1310]
["musique classique",2763,1023,1105]
["enregistrement parlé",832,502,761]
["jazz et blues",1547,694,553]
["musiques traditionnelles",666,243,314]
["musique (divers)",382,264,281]
["jeu vidéo",506,386,276]
["création",38,31,216]
["variété instrumentale et vocale",917,217,170]
["musiques électroniques",0,134,156]
["musique fonctionnelle",487,15,39]
["musique non spécifiée",0,1,26]
["sons naturels",43,8,16]
["humour",43,25,15]
["bruitage",6,3,7]
["musique de genre",4,2,3]
["bruitage, fonds sonore",3,1,3]
["études et recherches",10,0,3]
["édition électronique",18,3,2]
["(vide)",0,591,0]
["manuels et cours (tous niveaux confondus)",0,91,0]
["bande dessinée",0,20,0]
["autre",0,4,0]
["lois et textes réglementaires",0,3,0]
["actes de congrès",0,2,0]
["dictionnaire, thésaurus lexicographique",0,1,0]
["encyclopédie",0,1,0]
["thèse de doctorat",0,1,0]
["Total",{"$f":"SUM(B68:B98)","v":21367},{"$f":"SUM(C68:C98)","v":13441},{"$f":"SUM(D68:D98)","v":13273}]
["Source : Bibliographie nationale française - Audiovisuel"]
[]
["Nombre de monographies audiovisuelles par mode de diffusion et année"]
["Mode de diffusion",2016,2017,2018]
["édition phonographique",11849,5468,5815]
["édition vidéo commerciale",3044,3715,1988]
["édition commerciale",1527,1054,1222]
["circuit institutionnel",509,133,302]
["associatif",0,235,280]
["diffusion en ligne",0,5,23]
["diffusion à la télévision",3,0,4]
["diffusion à la radio",2,2,1]
["téléchargement",0,0,1]
["salle de cinéma commerciale",2,68,0]
["Total",{"$f":"SUM(B104:B113)","v":16936},{"$f":"SUM(C104:C113)","v":10680},{"$f":"SUM(D104:D113)","v":9636}]
["Source : Bibliographie nationale française - Audiovisuel"]
[]
["Nombre de monographies audiovisuelles par public ou fonction et année"]
["Public destinataire ou fonction",2016,2017,2018]
["audiovisuel d'entreprise",390,223,545]
["promotion ",36,129,330]
["enfance",385,289,246]
["jeunesse",195,212,137]
["publicité",183,20,133]
["autoformation",127,138,123]
["adulte",172,136,91]
["enseignement scolaire primaire",88,71,84]
["enseignement scolaire secondaire",42,35,69]
["petite enfance",147,99,58]
["adolescence",139,77,52]
["recherche",11,12,41]
["enseignement technique",3,13,39]
["enseignement",12,22,36]
["formation professionnelle, formation continue",66,23,29]
["enseignement préscolaire : maternelle",16,11,14]
["ludo-éducatif",16,15,9]
["expert, spécialiste",18,8,9]
["handicap visuel",0,1,7]
["enseignement supérieur",60,7,4]
["handicap auditif",2,1,1]
["déficience cognitive",0,0,1]
["service public ",0,4,0]
["enseignement scolaire",3,3,0]
["Total",{"$f":"SUM(B119:B142)","v":2111},{"$f":"SUM(C119:C142)","v":1549},{"$f":"SUM(D119:D142)","v":2058}]
["Source : Bibliographie nationale française - Audiovisuel"]
[]
["Nombre de monographies audiovisuelles par forme et année"]
["Forme",2016,2017,2018]
["court métrage",557,396,841]
["compilation",0,115,475]
["lecture",326,189,392]
["série",438,506,284]
["animation",508,426,282]
["documentaire",274,119,282]
["vidéomusique",191,272,260]
["anthologie ou récital",619,209,210]
["logiciel(s) d'application",233,48,154]
["méthode de langue",118,94,125]
["entretien",94,63,121]
["cours, conférence",118,87,106]
["manuel scolaire",70,51,98]
["bande originale de film",25,42,98]
["dessin animé",18,110,68]
["évocation scénarisée",37,21,61]
["récit, portrait",35,32,32]
["reportage",41,21,28]
["montage archives",18,27,25]
["collectage",89,18,24]
["méthode de musique",19,45,21]
["bande originale radio tv",1,14,18]
["congrès",19,11,18]
["karaoké",5,8,11]
["déclaration, allocution, discours",4,1,11]
["animation avec marionnettes",11,4,9]
["magazine",22,8,5]
["encyclopédie, dictionnaire",3,0,4]
["long métrage",1,0,4]
["images de synthèse",8,5,3]
["débat",13,4,3]
["jeu",1,0,3]
["réalité virtuelle",0,0,3]
["base de données",0,0,2]
["conférence de presse",3,0,2]
["document brut",5,0,2]
["réalité spectacle",0,0,2]
["téléfilm",6,13,1]
["intelligence / vie artificielle",0,0,1]
["feuilleton",1,14,0]
["émission de variétés",0,2,0]
["chronique",0,1,0]
["hit parade",0,1,0]
["journal",1,1,0]
["single",0,1,0]
["didacticiel",2,0,0]
["Total",{"$f":"SUM(B148:B193)","v":3934},{"$f":"SUM(C148:C193)","v":2979},{"$f":"SUM(D148:D193)","v":4089}]
["Source : Bibliographie nationale française - Audiovisuel"]
[]
["Nombre de monographies audiovisuelles par pays de publication et année"]
["Pays de publication",2016,2017,2018]
["France",15510,7582,7731]
["Allemagne",642,322,642]
["Royaume-Uni",783,431,458]
["Etats-Unis",608,309,291]
["Canada",121,36,43]
["Pays-Bas",21,19,41]
["(vide)",31,36,21]
["Belgique",51,25,19]
["Japon",37,6,14]
["Suisse",35,21,12]
["Finlande",55,26,11]
["multiple",7,4,11]
["Autriche",24,16,8]
["Italie",86,8,8]
["Australie",16,9,7]
["Suède",18,2,6]
["Espagne",160,8,5]
["Corée",0,0,4]
["Monaco",2,2,4]
["Iran",0,0,3]
["Portugal",5,1,3]
["Hong Kong",1,0,2]
["inconnu",6,3,2]
["Inde",0,0,2]
["Norvège",1,0,2]
["Slovaquie",0,1,2]
["Afrique du sud",0,1,1]
["Chine",3,2,1]
["Jamaïque",0,0,1]
["Oman",0,0,1]
["Philippines",0,0,1]
["République dominicaine",0,0,1]
["Russie",4,0,1]
["Andorre",78,0,0]
["Argentine",1,0,0]
["Bangladesh",1,0,0]
["Biélorussie",0,0,0]
["Bosnie Herzgovine",0,0,0]
["Brésil",1,0,0]
["Bulgarie",0,0,0]
["Croatie",1,0,0]
["Cuba",0,6,0]
["Danemark",5,1,0]
["Erythrée",0,0,0]
["Europe",3310,2428,1927]
["Géorgie",1,0,0]
["Grèce",1,0,0]
["Guadeloupe",2,0,0]
["Guinée",0,0,0]
["Hongrie",9,0,0]
["Iles Maurice",0,0,0]
["Irlande",2,0,0]
["Islande",1,0,0]
["Israël",2,0,0]
["Kazakhstan",1,0,0]
["Liban",0,0,0]
["Mexique",6,0,0]
["Nigéria",0,1,0]
["Nouvelle Zélande",1,0,0]
["Pologne",5,5,0]
["République tchèque",1,0,0]
["Réunion",2,0,0]
["Sénégal",0,0,0]
["Serbie",0,0,0]
["Slovénie",0,0,0]
["Taïwan",2,0,0]
["Uruguay",0,1,0]
["Total",{"$f":"SUM(B199:B265)","v":21660},{"$f":"SUM(C199:C265)","v":11312},{"$f":"SUM(D199:D265)","v":11286}]
["Source : Bibliographie nationale française - Audiovisuel"]
[]
["Nombre de monographies audiovisuelles par langue de publication et année"]
["Langue de publication",2016,2017,2018]
["français",5205,3348,4197]
["anglais",4904,2986,2912]
["multilingue",2538,2738,1529]
["sans contenu linguistique",3077,1139,1337]
["langues multiples",1675,767,955]
["allemand",117,42,77]
["italien",105,47,67]
["(vide)",159,91,50]
["espagnol",100,34,30]
["langue indéterminée",47,14,26]
["latin",59,24,16]
["portugais",36,11,14]
["basque",1,3,13]
["arabe",19,3,5]
["corse",18,4,5]
["breton",37,9,4]
["occitan",9,7,4]
["langue celtique",0,0,3]
["russe",14,5,3]
["suédois",2,0,3]
["finnois",3,0,2]
["langue artificielle",5,3,2]
["norvégien",5,2,2]
["peul",0,0,2]
["roumain",1,0,2]
["tahitien",0,0,2]
["turc",8,0,2]
["féroïen",0,0,2]
["danois",0,0,1]
["dialecte français",0,0,1]
["écossais",0,0,1]
["espéranto",0,0,1]
["français ancien",0,0,1]
["français moyen",0,2,1]
["géorgien",2,0,1]
["hongrois",2,0,1]
["indonésien",0,0,1]
["islandais",1,1,1]
["japonais",11,1,1]
["langue berbère",0,1,1]
["langue des signes française",0,1,1]
["malgache",4,0,1]
["néerlandais",0,0,1]
["persan",1,0,1]
["syriaque",0,0,1]
["tchèque",0,1,1]
["tibétain",2,0,1]
["yiddish",2,1,1]
["afrikaan",1,0,0]
["akan",1,0,0]
["amharique",2,1,0]
["aragonais",1,0,0]
["arménien",1,0,0]
["bambara",1,1,0]
["bengali",1,0,0]
["bielorusse",2,0,0]
["bosniaque",1,0,0]
["chinois",2,0,0]
["coréen",3,0,0]
["créole ou pdgin portugais",1,0,0]
["créole ou pidgin français",13,7,0]
["croate",3,0,0]
["estonien",1,0,0]
["gaélique",1,0,0]
["galicien",1,0,0]
["ganda",1,0,0]
["grec moderne",2,0,0]
["haïtien",2,0,0]
["hébreu",2,3,0]
["hindi",1,0,0]
["kabyle",2,0,0]
["khmer central",2,1,0]
["langue bantou",1,1,0]
["langue nilo-saharienne",6,3,0]
["langue songhai",1,0,0]
["langues baltes",1,0,0]
["langues nahuatl",1,0,0]
["langues nigéro-congolaises",1,0,0]
["lao",0,1,0]
["mandingue",7,2,0]
["mongol",1,1,0]
["moré",2,0,0]
["napolitain",1,0,0]
["ouïgour",1,0,0]
["ourdou",0,1,0]
["ouzbek",1,0,0]
["polonais",2,1,0]
["provançal ancien",1,0,0]
["romani",3,0,0]
["sanskrit",1,0,0]
["shona",1,0,0]
["slavon d'église",3,1,0]
["somali",1,0,0]
["soussou",1,0,0]
["suisse alémanique",5,2,0]
["sumérien",1,0,0]
["tadjik",1,0,0]
["vietnamien",0,1,0]
["wolof",1,0,0]
["Total",{"$f":"SUM(B271:B369)","v":18262},{"$f":"SUM(C271:C369)","v":11312},{"$f":"SUM(D271:D369)","v":11286}]
["Source : Bibliographie nationale française - Audiovisuel"]
[]
["Nombre de monographies audiovisuelles par langue originale et année"]
["Langue originale",2016,2017,2018]
["anglais",1198,1598,847]
["français",304,197,217]
["japonais",198,222,85]
["italien",57,65,77]
["allemand",48,51,63]
["espagnol",45,74,54]
["russe",14,15,35]
["arabe",30,24,23]
["portugais",33,12,22]
["coréen",7,6,16]
["chinois",25,15,13]
["hébreu",7,7,11]
["islandais",0,1,8]
["néerlandais",5,6,7]
["suédois",11,14,7]
["vietnamien",4,1,7]
["danois",9,5,6]
["bosniaque",0,0,4]
["hindi",6,0,4]
["langue austronésienne",0,0,4]
["polonais",1,7,4]
["tchèque",2,3,4]
["arménien",0,0,3]
["bulgare",1,1,3]
["dioula",0,1,3]
["indéterminée",11,2,3]
["norvégien",4,5,3]
["persan",9,1,3]
["roumain",6,3,3]
["turc",0,4,3]
["birman",0,1,2]
["croate",3,3,2]
["finnois",0,3,2]
["lahnda",0,0,2]
["lao",0,0,2]
["tamoul",0,0,2]
["alémanique",1,0,1]
["créole ou pidgin français",1,6,1]
["éwé",0,0,1]
["fon",0,0,1]
["grec moderne",1,0,1]
["hongrois",2,13,1]
["judéo-arabe",0,0,1]
["kabyle",0,0,1]
["khmer central",1,1,1]
["langue bantou",0,0,1]
["langue berbère",0,0,1]
["letton",0,0,1]
["malgache",3,4,1]
["maori",0,0,1]
["mohawk",0,0,1]
["occitan",2,0,1]
["pachto",3,0,1]
["quechua",0,0,1]
["sango",0,0,1]
["serbe",0,0,1]
["syriaque",0,0,1]
["thaï",1,2,1]
["yiddish",0,6,1]
["afrikaans",2,0,0]
["albanais",1,0,0]
["amharique",1,1,0]
["azéri",1,0,0]
["bambara",6,0,0]
["bantou",1,0,0]
["basa",0,1,0]
["bengali",2,1,0]
["breton",1,1,0]
["catalan",0,1,0]
["créole et pidgins",2,0,0]
["ewondo",1,0,0]
["géorgien",2,1,0]
["groenlandais",1,0,0]
["haïtien",1,0,0]
["haoussa",0,1,0]
["indonésien",1,0,0]
["kirghize",2,0,0]
["langue bamiléké",0,1,0]
["langue philippine",0,6,0]
["langue songhai",1,0,0]
["latin",2,3,0]
["lingala",3,1,0]
["mandingue",4,2,0]
["marathe",1,0,0]
["moré",5,1,0]
["norvégien nynorsk",1,2,0]
["ourdou",1,0,0]
["peul",1,1,0]
["rwanda",1,1,0]
["sérère",1,0,0]
["slovaque",2,1,0]
["swahili",2,0,0]
["tadjik",0,1,0]
["tamacheq",0,1,0]
["tchétchène",1,0,0]
["wolof",17,1,0]
["zoulou",1,0,0]
["Total",{"$f":"SUM(B375:B471)","v":2122},{"$f":"SUM(C375:C471)","v":2408},{"$f":"SUM(D375:D471)","v":1577}]
["Source : Bibliographie nationale française - Audiovisuel"]

{"sheet":"Son","index":1,"n_rows":284,"n_cols":11,"rows_kept":284,"cut":false,"hidden":false,"merged":[[244,3,244,4],[1,3,1,4],[1,5,1,6]]}
["Nombre de dépôts et déposants de monographies, répartis selon le nombre de dépôts annuels par déposant – Phonogrammes"]
["Son",2016,null,2017,null,2018]
["Tranches","Dépôts","Déposants","Dépôts","Déposants","Dépôts","Déposants"]
["Plus de 50",5984,12,6481,13,6015,11]
["10 à 49",1189,62,758,38,882,44]
["2 à 9",1262,338,767,204,660,168]
[1,362,362,224,224,176,176]
["Total",{"$f":"SUM(B4:B7)","v":8797},774,8230,479,{"$f":"SUM(F4:F7)","v":7733},{"$f":"SUM(G4:G7)","v":399}]
["Source : Entrées dépôt légal"]
[]
["Liste des 10 principaux déposants de monographies, par année de dépôt - Phonogrammes"]
[null,"Déposant",2016,null,"Déposant",2017,null,"Déposant",2018]
[null,"Universal",1901,null,"Warner music France",2096,null,"Warner music France",2267]
[null,"Sony Music Entertainment",1361,null,"Universal music France",1777,null,"Universal music France",1707]
[null,"Warner Music France",1296,null,"Sony music entertainment",1620,null,"Sony music entertainment",1340]
[null,"Harmonia \nmundi distribution",421,null,"Wagram music",170,null,"ADF - Bayard musique",155]
[null,"Universal \nPublishing Production Music",236,null,"Osmose productions",169,null,"Audiolib / Hachette livre",105]
[null,"La Baleine",178,null,"Modulor",121,null,"Eitrini éditions",103]
[null,"WAGRAM \nMUSIC",159,null,"Audiolib / Hachette livre",99,null,"Wagram music",98]
[null,"Universal \nCaroline",130,null,"Editions Gallimard",81,null,"Harmonia mundi distribution",86]
[null,"Atelier du \nCarmel",85,null,"Frémeaux & Associés",77,null,"Orkhêstra international",53]
[null,"Naïve distribution",75,null,"PIAS France",73,null,"Socadisc",51]
[null,"Total",{"$f":"SUM(C13:C22)","v":5842},null,"Total",{"$f":"SUM(F13:F22)","v":6283},null,"Total",{"$f":"SUM(I12:I22)","v":7983}]
["Source : Entrées dépôt légal"]
[]
["Nombre de déposants de monographies par département et région déposant - Phonogrammes"]
["Départements",2016,2017,2018,null,"Régions",2016,2017,2018]
["Ain",6,5,3,null,"Auvergne - Rhône Alpes",77,36,29,null,"Ain, Allier, Ardèche, Cantal, Drôme, Haute-Loire, Haute-Savoie, Isère, Loire, Puy-de-Dôme, Rhône, Savoie"]
["Aisne",2,3,1,null,"Bourgogne - Franche-Comté",17,19,15,null,"Côte d'Or, Doubs, Haute-Saône, Jura, Nièvre, Saône-et-Loire, Territoire de Belfort, Yonne"]
["Allier",0,1,1,null,"Bretagne",49,23,23,null,"Côte d'Armor, Finistère, Ille-et-Vilaine, Morbihan"]
["Alpes-de-Haute-Provence",1,0,1,null,"Centre - Val-de-Loire",25,15,17,null,"Cher, Eure-et-Loire, Indre, Indre-et-Loire, Loiret, Loir-et-Cher"]
["Alpes-Maritimes",9,5,2,null,"Corse",6,1,2]
["Ardèche",1,1,0,null,"Grand-Est",48,24,15,null,"Ardennes, Aube, Bas-Rhin, Haute-Marne, Haut-Rhin, Marne, Meurthe-et-Moselle, Meuse, Moselle, Vosges"]
["Ardennes",0,0,0,null,"Hauts-de-France",21,24,10,null,"Aisne, Nord, Oise, Pas-de-Calais, Somme"]
["Ariège",0,2,1,null,"Ile-de-France",302,195,182,null,"Essone, Hauts-de-Seine, Paris, Seine-et-Marne, Seine-Saint-Denis, Yvelines, Val-de-Marne, Val-d'Oise"]
["Aube",3,0,0,null,"Normandie",27,12,10,null,"Calvados, Eure, Manche, Orne, Seine-Maritime"]
["Aude",4,4,3,null,"Nouvelle-Aquitaine",48,31,26,null,"Charente, Charente-Maritime, Corrèze, Creuse, Deux-Sèvres, Dordogne, Gironde, Haute-Vienne, Landes, Lot-et-Garonne, Pyrénées-Atlantiques, Vienne"]
["Aveyron",2,2,0,null,"Occitanie",60,43,29,null,"Ariège, Aude, Aveyron, Gard, Gers, Haute-Garonne, Hautes-Pyrénées, Hérault, Lot, Lozère, Pyrénées-Orientales, Tarn, Tarn-et-Garonne"]
["Bas-Rhin",15,12,2,null,"Outre-mer",7,2,2,null,"Guadeloupe, Guyane, Martinique, Mayotte, Nouvelle-Calédonie, Polynésie française, Réunion, Saint-Pierre-et-Miquelon"]
["Bouches-du-Rhône",20,13,8,null,"Pays de la Loire",35,24,18,null,"Loire-Atlantique, Maine-et-Loire, Mayenne, Sarthe, Vendée"]
["Calvados",4,4,4,null,"Provence-Alpes-Côte d'Azur",45,27,17,null,"Alpes-de-Haute-Provence, Alpes-Maritimes, Bouches-du-Rhône, Hautes-Alpes, Var, Vaucluse"]
["Cantal",1,0,0,null,"pas de département spécifié",7,3,4]
["Charente",2,0,1,null,"Total",774,479,{"$f":"SUM(I28:I42)","v":399}]
["Charente-Maritime",4,2,3]
["Cher",4,1,3]
["Corrèze",0,3,0]
["Corse",6,1,2]
["Côte-d'Or",0,3,3]
["Côtes-d'Armor",11,6,4]
["Creuse",4,1,2]
["Deux-Sèvres",1,1,1]
["Dordogne",4,3,0]
["Doubs",7,5,3]
["Drôme",8,2,2]
["Essonne",15,13,8]
["Eure",0,1,1]
["Eure-et-Loir",3,1,2]
["Finistère",13,6,5]
["Gard",8,2,1]
["Gers",1,0,0]
["Gironde",20,15,8]
["Guadeloupe",2,0,0]
["Guyane",1,0,0]
["Haut-Rhin",4,2,2]
["Haute-Garonne",19,18,13]
["Haute-Loire",1,1,0]
["Haute-Marne",2,0,0]
["Haute-Saône",1,0,1]
["Haute-Savoie",3,5,1]
["Haute-Vienne",5,0,1]
["Hautes-Alpes",1,0,0]
["Hautes-Pyrénées",0,0,0]
["Hauts-de-Seine",28,16,18]
["Hérault",17,6,6]
["Ille-et-Vilaine",20,8,8]
["Indre",0,1,1]
["Indre-et-Loire",7,5,4]
["Isère",17,3,2]
["Jura",0,1,0]
["Landes",3,1,2]
["Loir-et-Cher",2,2,2]
["Loire",3,1,3]
["Loire-Atlantique",20,9,9]
["Loiret",9,5,5]
["Lot",2,1,1]
["Lot-et-Garonne",3,0,0]
["Lozère",0,0,0]
["Maine-et-Loire",7,5,4]
["Manche",7,1,1]
["Marne",8,0,7]
["Martinique",0,0,0]
["Mayenne",2,3,2]
["Mayotte",0,0,0]
["Meurthe-et-Moselle",11,5,1]
["Meuse",1,0,1]
["Morbihan",5,3,5]
["Moselle",2,4,1]
["Nièvre",1,1,2]
["Nord",10,9,4]
["Nouvelle-Calédonie",0,0,0]
["Oise",5,6,4]
["Orne",2,1,0]
["Paris",167,110,103]
["pas de département",7,3,4]
["Pas-de-Calais",3,4,1]
["Polynésie Française",0,0,0]
["Puy-de-Dôme",8,2,4]
["Pyrénées-Atlantiques",0,3,6]
["Pyrénées-Orientales",1,0,2]
["Réunion",4,2,2]
["Rhône",22,15,12]
["Saint-Pierre-et-Miquelon",0,0,0]
["Saône-et-Loire",6,4,3]
["Sarthe",3,4,2]
["Savoie",7,0,1]
["Seine-et-Marne",15,8,8]
["Seine-Maritime",14,5,4]
["Seine-Saint-Denis",30,19,15]
["Somme",1,2,0]
["Tarn",5,7,2]
["Tarn-et-Garonne",1,1,0]
["Territoire de Belfort",0,1,0]
["Val-d'Oise",6,5,8]
["Val-de-Marne",25,15,13]
["Var",12,4,6]
["Vaucluse",2,5,1]
["Vendée",3,3,1]
["Vienne",2,2,2]
["Vosges",2,1,1]
["Yonne",2,4,3]
["Yvelines",16,9,9]
["Total",{"$f":"SUM(B28:B131)","v":774},{"$f":"SUM(C28:C131)","v":479},{"$f":"SUM(D28:D131)","v":399}]
["Source : Entrées dépôt légal"]
[]
["Nombre de dépôts de monographies par département et région déposant - Phonogrammes"]
["Département",2016,2017,2018,null,"Régions",2016,2017,2018]
["Ain",9,23,4,null,"Auvergne - Rhône Alpes",244,158,167,null,"Ain, Allier, Ardèche, Cantal, Drôme, Haute-Loire, Haute-Savoie, Isère, Loire, Puy-de-Dôme, Rhône, Savoie"]
["Aisne",9,4,1,null,"Bourgogne - Franche-Comté",52,60,31,null,"Côte d'Or, Doubs, Haute-Saône, Jura, Nièvre, Saône-et-Loire, Territoire de Belfort, Yonne"]
["Allier",0,5,11,null,"Bretagne",341,60,79,null,"Côte d'Armor, Finistère, Ille-et-Vilaine, Morbihan"]
["Alpes-de-Haute-Provence",2,0,3,null,"Centre - Val-de-Loire",92,78,105,null,"Cher, Eure-et-Loire, Indre, Indre-et-Loire, Loiret, Loir-et-Cher"]
["Alpes-Maritimes",33,8,5,null,"Corse",55,5,6]
["Ardèche",19,8,0,null,"Grand est",157,101,29,null,"Ardennes, Aube, Bas-Rhin, Haute-Marne, Haut-Rhin, Marne, Meurthe-et-Moselle, Meuse, Moselle, Vosges"]
["Ardennes",0,0,0,null,"Hauts-de-France",61,272,73,null,"Aisne, Nord, Oise, Pas-de-Calais, Somme"]
["Ariège",0,7,1,null,"Ile-de-France",6235,6857,6580,null,"Essone, Hauts-de-Seine, Paris, Seine-et-Marne, Seine-Saint-Denis, Yvelines, Val-de-Marne, Val-d'Oise"]
["Aube",4,0,0,null,"Normandie",62,48,30,null,"Calvados, Eure, Manche, Orne, Seine-Maritime"]
["Aude",5,44,14,null,"Nouvelle Aquitaine",405,222,93,null,"Charente, Charente-Maritime, Corrèze, Creuse, Deux-Sèvres, Dordogne, Gironde, Haute-Vienne, Landes, Lot-et-Garonne, Pyrénées-Atlantiques, Vienne"]
["Aveyron",11,2,0,null,"Occitanie",173,197,153,null,"Ariège, Aude, Aveyron, Gard, Gers, Haute-Garonne, Hautes-Pyrénées, Hérault, Lot, Lozère, Pyrénées-Orientales, Tarn, Tarn-et-Garonne"]
["Bas-Rhin",39,37,2,null,"Outre-mer",11,2,3,null,"Guadeloupe, Guyane, Martinique, Mayotte, Nouvelle-Calédonie, Polynésie française, Réunion, Saint-Pierre-et-Miquelon"]
["Bouches-du-Rhône",498,59,111,null,"pas de département spécifié",88,6,12]
["Calvados",5,22,6,null,"Pays de la Loire",258,69,236,null,"Loire-Atlantique, Maine-et-Loire, Mayenne, Sarthe, Vendée"]
["Cantal",1,0,0,null,"Provence-Alpes-Côte d'Azur",563,94,136,null,"Alpes-de-Haute-Provence, Alpes-Maritimes, Bouches-du-Rhône, Hautes-Alpes, Var, Vaucluse"]
["Charente",2,0,2,null,"Total",8797,8229,{"$f":"SUM(I137:I151)","v":7733}]
["Charente-Maritime",47,60,29]
["Cher",5,2,5]
["Corrèze",0,8,0]
["Corse",55,5,6]
["Côte-d'Or",0,8,4]
["Côtes-d'Armor",31,9,28]
["Creuse",20,4,7]
["Deux-Sèvres",178,1,1]
["Dordogne",31,3,0]
["Doubs",15,6,8]
["Drôme",37,2,2]
["Essonne",1976,1844,1781]
["Eure",0,6,12]
["Eure-et-Loir",13,24,4]
["Finistère",185,30,19]
["Gard",17,4,1]
["Gers",1,0,0]
["Gironde",73,62,33]
["Guadeloupe",3,0,0]
["Guyane",1,0,0]
["Haut-Rhin",6,2,3]
["Haute-Garonne",60,68,81]
["Haute-Loire",1,1,0]
["Haute-Marne",2,0,0]
["Haute-Saône",1,0,5]
["Haute-Savoie",6,16,1]
["Haute-Vienne",5,0,1]
["Hautes-Alpes",1,0,0]
["Hautes-Pyrénées",0,0,0]
["Hauts-de-Seine",91,43,64]
["Hérault",45,28,44]
["Ille-et-Vilaine",114,14,24]
["Indre",0,1,2]
["Indre-et-Loire",23,11,26]
["Isère",65,32,5]
["Jura",0,23,0]
["Landes",11,2,4]
["Loir-et-Cher",17,28,30]
["Loire",30,1,57]
["Loire-Atlantique",82,21,60]
["Loiret",34,13,38]
["Lot",6,1,2]
["Lot-et-Garonne",13,0,0]
["Lozère",0,0,0]
["Maine-et-Loire",146,8,159]
["Manche",28,2,7]
["Marne",30,0,16]
["Martinique",0,0,0]
["Mayenne",12,9,7]
["Mayotte",0,0,0]
["Meurthe-et-Moselle",69,13,1]
["Meuse",1,0,1]
["Morbihan",11,7,8]
["Moselle",2,45,3]
["Nièvre",3,1,3]
["Nord",22,32,4]
["Nouvelle-Calédonie",0,0,0]
["Oise",23,50,67]
["Orne",2,1,0]
["Paris",3742,4693,4355]
["pas de département",88,6,12]
["Pas-de-Calais",4,172,1]
["Polynésie Française",0,0,0]
["Puy-de-Dôme",9,2,22]
["Pyrénées-Atlantiques",0,78,9]
["Pyrénées-Orientales",2,0,2]
["Réunion",7,2,3]
["Rhône",58,65,58]
["Saint-Pierre-et-Miquelon",0,0,0]
["Saône-et-Loire",31,13,3]
["Sarthe",11,27,15]
["Savoie",9,3,0]
["Seine-et-Marne",36,23,30]
["Seine-Maritime",27,17,5]
["Seine-Saint-Denis",158,115,70]
["Somme",3,14,0]
["Tarn",25,42,8]
["Tarn-et-Garonne",1,1,0]
["Territoire de Belfort",0,1,0]
["Val-d'Oise",11,8,21]
["Val-de-Marne",151,116,99]
["Var",24,9,16]
["Vaucluse",5,18,1]
["Vendée",7,4,2]
["Vienne",25,4,7]
["Vosges",4,4,3]
["Yonne",2,8,8]
["Yvelines",70,15,160]
["Total",{"$f":"SUM(B137:B240)","v":8797},{"$f":"SUM(C137:C240)","v":8230},{"$f":"SUM(D137:D240)","v":7733}]
["Source : Entrées dépôt légal"]
[]
["Nombre de monographies sonores par support et année"]
["Type de support",2016,2017,2018]
[null,null,null,"Nbre de dépôts","Nbre de composants du dépôt"]
["CD-audio 12 cm",12924,22079,5000,10192]
["disque microsillon",3026,6006,2315,3660]
["CD-MP3",142,657,313,396]
["cassette audio analogique",61,146,10,10]
["SACD",18,108,9,12]
["CD Plus, CD extra",15,42,8,8]
["CD-R audio",44,36,46,47]
["mémoire USB",10,18,2,2]
["Blu-Ray Disc",46,9,21,22]
["disque optique hybride",6,5,0,0]
["DVD vidéo",244,0,0,0]
["son dématérialisé",67,0,0,0]
["CD-audio 8 cm",18,0,0,0]
["brochure",5,0,0,0]
["CD-ROM",1,0,0,0]
["DVD audio",1,0,0,0]
["Total",{"$f":"SUM(B247:B262)","v":16628},{"$f":"SUM(C247:C262)","v":29106},{"$f":"SUM(D247:D262)","v":7724},{"$f":"SUM(E247:E262)","v":14349}]
["Source : Entrées dépôt légal",null,null,"manquent : 8 cassettes vidéo 1'' ; 1 document électronique dématérialisé"]
[]
["Nombre de périodiques sonores par support et année"]
["Type de support",2016,2017,2018]
["CD Plus, CD extra",9,0,32]
["CD-R audio",8,6,0]
["CD-audio 12 cm",4,4,0]
["CD-MP3",24,2,0]
["disque microsillon",0,0,0]
["SACD",0,0,0]
["cassette audio analogique",0,0,0]
["mémoire USB",0,0,0]
["Blu-Ray Disc",0,0,0]
["disque optique hybride",0,0,0]
["DVD vidéo",0,0,0]
["son dématérialisé",0,0,0]
["CD-audio 8 cm",0,0,0]
["CD-ROM",0,0,0]
["DVD audio",0,0,0]
["Total",{"$f":"SUM(B268:B282)","v":45},{"$f":"SUM(C268:C282)","v":12},{"$f":"SUM(D268:D282)","v":32}]
["Source : Entrées dépôt légal"]

{"sheet":"Vidéo","index":2,"n_rows":299,"n_cols":10,"rows_kept":299,"cut":false,"hidden":false,"merged":[[1,5,1,6],[1,3,1,4],[242,3,242,4]]}
["Nombre de dépôts et déposants de monographies, répartis selon le nombre de dépôts annuels par déposant – Vidéogrammes"]
["Vidéo",2016,null,2017,null,2018]
["Tranches","Dépôts","Déposants","Dépôts","Déposants","Dépôts","Déposants"]
["Plus de 50",8027,38,8576,35,4592,29]
["10 à 49",1409,68,1168,53,847,39]
["2 à 9",469,121,375,100,249,71]
[1,168,168,111,111,82,82]
["Total",{"$f":"SUM(B4:B7)","v":10073},395,10230,299,{"$f":"SUM(F4:F7)","v":5770},{"$f":"SUM(G4:G7)","v":221}]
["Source : Entrées dépôt légal"]
[]
["Liste des 10 principaux déposants de monographies par année de dépôt - Vidéogrammes"]
[null,"Déposant",2016,null,"Déposant",2017,null,"Déposant",2018]
[null,"Caméra club \nOrsay faculté",1225,null,"ONISEP",2376,null,"Le Fresnoy",684]
[null,"OPSOMAI",956,null,"Opsomai",645,null,"Centre national du cinéma et de l'image animée",513]
[null,"Universal Studio \nCanal vidéo",726,null,"Oroleis de Paris",581,null,"Courts devant",415]
[null,"les Écrans du social",442,null,"Centre international de création vidéo",570,null,"Fédération française de cinéma et vidéo",308]
[null,"INFIPP SCOP SA",355,null,"Universal pictures video France",458,null,"Fox Pathé Europa",249]
[null,"Fédération française de cinéma et vidéo",340,null,"Fox Pathé Europa",452,null,"École internationale de création audiovisuelle et de réalisation",227]
[null,"Université Paris Diderot",332,null,"Optimale",433,null,"Benoit Labourdette production",206]
[null,"Universal Music",307,null,"Fédération française de cinéma et vidéo",314,null,"Universal pictures video France",163]
[null,"les Films du zébu",251,null,"Elephant films",288,null,"André Waksman",149]
[null,"Fox Pathé Europa",234,null,"École internationale de création audiovisuelle et de réalisation",228,null,"ESC éditions",142]
[null,"Total",{"$f":"SUM(C13:C22)","v":5168},null,"Total",{"$f":"SUM(F13:F22)","v":6345},null,"Total",{"$f":"SUM(I13:I22)","v":3056}]
["Source : Entrées dépôt légal"]
[]
["Nombre de déposants de monographies par département et région déposant - Vidéogrammes"]
["Départements",2016,2017,2018,null,"Régions",2016,2017,2018]
["Ain",1,1,1,null,"Auvergne - Rhône Alpes",34,21,{"$f":"D28+D30+D33+D42+D54+D66+D69+D78+D82+D107+D111+D114","v":16},"Ain, Allier, Ardèche, Cantal, Drôme, Haute-Loire, Haute-Savoie, Isère, Loire, Puy-de-Dôme, Rhône, Savoie"]
["Aisne",0,0,0,null,"Bourgogne - Franche-Comté",9,8,{"$f":"D48+D53+D68+D79+D98+D112+D121+D129","v":7},"Côte d'Or, Doubs, Haute-Saône, Jura, Nièvre, Saône-et-Loire, Territoire de Belfort, Yonne"]
["Allier",1,1,0,null,"Bretagne",14,11,{"$f":"D49+D58+D75+D96","v":10},"Côte d'Armor, Finistère, Ille-et-Vilaine, Morbihan"]
["Alpes-de-Haute-Provence",1,0,0,null,"Centre - Val-de-Loire",10,9,{"$f":"D45+D57+D76+D77+D84+D81","v":7},"Cher, Eure-et-Loire, Indre, Indre-et-Loire, Loiret, Loir-et-Cher"]
["Alpes-Maritimes",2,1,2,null,"Corse",0,1,{"$f":"D47","v":1}]
["Ardèche",1,2,0,null,"Grand-Est",19,12,{"$f":"D34+D36+D39+D67+D64+D90+D94+D95+D97+D128","v":5},"Ardennes, Aube, Bas-Rhin, Haute-Marne, Haut-Rhin, Marne, Meurthe-et-Moselle, Meuse, Moselle, Vosges"]
["Ardennes",1,1,0,null,"Hauts-de-France",7,8,{"$f":"D29+D99+D101+D105+D118","v":2},"Aisne, Nord, Oise, Pas-de-Calais, Somme"]
["Ariège",1,1,1,null,"Ile-de-France",218,168,{"$f":"D55+D73+D103+D122+D115+D117+D130+D123","v":125},"Essone, Hauts-de-Seine, Paris, Seine-et-Marne, Seine-Saint-Denis, Yvelines, Val-de-Marne, Val-d'Oise"]
["Aube",0,0,0,null,"Normandie",7,3,{"$f":"D41+D56+D89+D116+D102","v":5},"Calvados, Eure, Manche, Orne, Seine-Maritime"]
["Aude",2,6,1,null,"Nouvelle-Aquitaine",23,13,{"$f":"D43+D44+D46+D50+D51+D52+D61+D70+D80+D86+D127+D108","v":9},"Charente, Charente-Maritime, Corrèze, Creuse, Deux-Sèvres, Dordogne, Gironde, Haute-Vienne, Landes, Lot-et-Garonne, Pyrénées-Atlantiques, Vienne"]
["Aveyron",1,0,2,null,"Occitanie",18,17,{"$f":"D35+D37+D38+D59+D60+D65+D72+D74+D85+D87+D109+D119+D120","v":14},"Ariège, Aude, Aveyron, Gard, Gers, Haute-Garonne, Hautes-Pyrénées, Hérault, Lot, Lozère, Pyrénées-Orientales, Tarn, Tarn-et-Garonne"]
["Bas-Rhin",5,4,3,null,"Outre-mer",1,2,{"$f":"D62+D63+D91+D93+D100+D106+D110","v":3},"Guadeloupe, Guyane, Martinique, Mayotte, Nouvelle-Calédonie, Polynésie française, Réunion, Saint-Pierre-et-Miquelon"]
["Bouches-du-Rhône",12,5,3,null,"Pays de la Loire",8,11,{"$f":"D83+D88+D92+D113+D126","v":5},"Loire-Atlantique, Maine-et-Loire, Mayenne, Sarthe, Vendée"]
["Calvados",3,1,1,null,"Provence-Alpes-Côte d'Azur",19,10,{"$f":"D31+D32+D40+D71+D124+D125","v":6},"Alpes-de-Haute-Provence, Alpes-Maritimes, Bouches-du-Rhône, Hautes-Alpes, Var, Vaucluse"]
["Cantal",0,0,0,null,"pas de département spécifié",8,5,{"$f":"D104","v":6}]
["Charente",1,0,0,null,"Total",395,299,{"$f":"SUM(I28:I42)","v":221}]
["Charente-Maritime",2,3,1]
["Cher",2,0,0]
["Corrèze",1,0,0]
["Corse",0,1,1]
["Côte-d'Or",2,1,1]
["Côtes-d'Armor",2,0,1]
["Creuse",0,0,0]
["Deux-Sèvres",1,1,1]
["Dordogne",2,2,1]
["Doubs",3,2,3]
["Drôme",2,2,1]
["Essonne",3,1,2]
["Eure",0,1,1]
["Eure-et-Loir",1,3,3]
["Finistère",4,3,1]
["Gard",0,0,1]
["Gers",0,1,1]
["Gironde",5,1,2]
["Guadeloupe",0,0,0]
["Guyane",0,0,0]
["Haut-Rhin",2,0,0]
["Haute-Garonne",3,3,1]
["Haute-Loire",0,0,0]
["Haute-Marne",0,1,0]
["Haute-Saône",0,0,0]
["Haute-Savoie",4,1,1]
["Haute-Vienne",0,0,0]
["Hautes-Alpes",0,0,0]
["Hautes-Pyrénées",1,1,0]
["Hauts-de-Seine",29,19,15]
["Hérault",5,3,4]
["Ille-et-Vilaine",6,7,6]
["Indre",0,2,0]
["Indre-et-Loire",3,0,2]
["Isère",9,6,5]
["Jura",0,1,0]
["Landes",0,0,0]
["Loir-et-Cher",0,1,1]
["Loire",1,0,1]
["Loire-Atlantique",4,6,1]
["Loiret",4,3,1]
["Lot",0,0,1]
["Lot-et-Garonne",3,4,1]
["Lozère",0,0,0]
["Maine-et-Loire",0,1,1]
["Manche",0,0,0]
["Marne",5,1,1]
["Martinique",0,0,0]
["Mayenne",1,0,0]
["Mayotte",0,0,0]
["Meurthe-et-Moselle",1,2,0]
["Meuse",2,0,0]
["Morbihan",2,1,2]
["Moselle",2,1,0]
["Nièvre",0,1,2]
["Nord",6,3,2]
["Nouvelle-Calédonie",0,0,1]
["Oise",0,2,0]
["Orne",0,0,2]
["Paris",151,123,93]
["pas de département",8,5,6]
["Pas-de-Calais",0,2,0]
["Polynésie Française",0,0,0]
["Puy-de-Dôme",0,0,1]
["Pyrénées-Atlantiques",4,1,1]
["Pyrénées-Orientales",2,1,0]
["Réunion",1,2,2]
["Rhône",15,6,6]
["Saône-et-Loire",3,2,0]
["Sarthe",2,2,2]
["Savoie",0,2,0]
["Seine-et-Marne",2,2,0]
["Seine-Maritime",4,1,1]
["Seine-Saint-Denis",17,13,9]
["Somme",1,1,0]
["Tarn",2,0,2]
["Tarn-et-Garonne",1,1,0]
["Territoire de Belfort",0,0,0]
["Val-d'Oise",3,0,0]
["Val-de-Marne",8,10,4]
["Var",3,4,1]
["Vaucluse",1,0,0]
["Vendée",1,2,1]
["Vienne",4,1,2]
["Vosges",1,2,1]
["Yonne",1,1,1]
["Yvelines",5,0,2]
["Total",{"$f":"SUM(B28:B130)","v":395},{"$f":"SUM(C28:C130)","v":299},{"$f":"SUM(D28:D130)","v":221}]
["Source : Entrées dépôt légal"]
[]
["Nombre de dépôts de monographies par département et région déposant - Vidéogrammes"]
["Départements",2016,2017,2018,null,"Régions",2016,2017,2018]
["Ain",1,1,2,null,"Auvergne - Rhône Alpes",178,109,{"$f":"D136+D138+D141+D150+D162+D174+D177+D186+D190+D215+D219+D222","v":40},"Ain, Allier, Ardèche, Cantal, Drôme, Haute-Loire, Haute-Savoie, Isère, Loire, Puy-de-Dôme, Rhône, Savoie"]
["Aisne",0,0,0,null,"Bourgogne - Franche-Comté",1237,586,{"$f":"D156+D161+D176+D187+D206+D220+D229+D237","v":8},"Côte d'Or, Doubs, Haute-Saône, Jura, Nièvre, Saône-et-Loire, Territoire de Belfort, Yonne"]
["Allier",7,1,0,null,"Bretagne",60,43,{"$f":"D157+D166+D183+D204","v":28},"Côte d'Armor, Finistère, Ille-et-Vilaine, Morbihan"]
["Alpes-de-Haute-Provence",1,0,0,null,"Centre - Val-de-Loire",1002,117,{"$f":"D153+D165+D184+D185+D192+D189","v":45},"Cher, Eure-et-Loire, Indre, Indre-et-Loire, Loiret, Loir-et-Cher"]
["Alpes-Maritimes",2,3,37,null,"Corse",0,1,{"$f":"D155","v":1}]
["Ardèche",17,20,0,null,"Grand-Est",88,33,{"$f":"D142+D144+D147+D175+D172+D198+D202+D203+D205+D236","v":15},"Ardennes, Aube, Bas-Rhin, Haute-Marne, Haut-Rhin, Marne, Meurthe-et-Moselle, Meuse, Moselle, Vosges"]
["Ardennes",1,2,0,null,"Hauts-de-France",212,35,{"$f":"D137+D207+D209+D213+D226","v":685},"Aisne, Nord, Oise, Pas-de-Calais, Somme"]
["Ariège",1,1,1,null,"Ile-de-France",6802,8727,{"$f":"D163+D181+D211+D230+D223+D225+D238+D231","v":4472},"Essone, Hauts-de-Seine, Paris, Seine-et-Marne, Seine-Saint-Denis, Yvelines, Val-de-Marne, Val-d'Oise"]
["Aube",0,0,0,null,"Normandie",11,70,{"$f":"D149+D164+D197+D224+D210","v":105},"Calvados, Eure, Manche, Orne, Seine-Maritime"]
["Aude",22,11,1,null,"Nouvelle-Aquitaine",236,335,{"$f":"D151+D152+D154+D158+D159+D160+D169+D178+D188+D194+D235+D216","v":186},"Charente, Charente-Maritime, Corrèze, Creuse, Deux-Sèvres, Dordogne, Gironde, Haute-Vienne, Landes, Lot-et-Garonne, Pyrénées-Atlantiques, Vienne"]
["Aveyron",1,0,2,null,"Occitanie",67,70,{"$f":"D143+D145+D146+D167+D168+D173+D180+D182+D193+D195+D217+D227+D228","v":69},"Ariège, Aude, Aveyron, Gard, Gers, Haute-Garonne, Hautes-Pyrénées, Hérault, Lot, Lozère, Pyrénées-Orientales, Tarn, Tarn-et-Garonne"]
["Bas-Rhin",24,12,11,null,"Outre-mer",1,3,{"$f":"D170+D171+D199+D201+D208+D214+D218","v":6},"Guadeloupe, Guyane, Martinique, Mayotte, Nouvelle-Calédonie, Polynésie française, Réunion, Saint-Pierre-et-Miquelon"]
["Bouches-du-Rhône",66,9,5,null,"Pays de la Loire",26,43,{"$f":"D191+D196+D200+D221+D234","v":5},"Loire-Atlantique, Maine-et-Loire, Mayenne, Sarthe, Vendée"]
["Calvados",4,1,1,null,"Provence-Alpes-Côte d'Azur",73,16,{"$f":"D139+D140+D148+D179+D232+D233","v":43},"Alpes-de-Haute-Provence, Alpes-Maritimes, Bouches-du-Rhône, Hautes-Alpes, Var, Vaucluse"]
["Cantal",0,0,0,null,"pas de département spécifié",80,42,{"$f":"D212","v":62}]
["Charente",1,0,0,null,"Total",10073,10230,{"$f":"SUM(I136:I150)","v":5770}]
["Charente-Maritime",25,58,1]
["Cher",3,0,0]
["Corrèze",1,0,0]
["Corse",0,1,1]
["Côte-d'Or",4,10,2]
["Côtes-d'Armor",9,0,1]
["Creuse",0,0,0]
["Deux-Sèvres",165,43,119]
["Dordogne",6,3,1]
["Doubs",1227,571,3]
["Drôme",24,3,5]
["Essonne",3,6,14]
["Eure",0,68,23]
["Eure-et-Loir",30,109,36]
["Finistère",17,4,2]
["Gard",0,0,1]
["Gers",0,3,1]
["Gironde",8,36,60]
["Guadeloupe",0,0,0]
["Guyane",0,0,0]
["Haut-Rhin",2,0,0]
["Haute-Garonne",6,3,1]
["Haute-Loire",0,0,0]
["Haute-Marne",0,2,0]
["Haute-Saône",0,0,0]
["Haute-Savoie",8,2,1]
["Haute-Vienne",0,0,0]
["Hautes-Alpes",0,0,0]
["Hautes-Pyrénées",7,1,0]
["Hauts-de-Seine",1659,1185,655]
["Hérault",22,48,54]
["Ille-et-Vilaine",11,20,12]
["Indre",0,2,0]
["Indre-et-Loire",9,0,5]
["Isère",24,12,10]
["Jura",0,1,0]
["Landes",0,0,0]
["Loir-et-Cher",0,1,2]
["Loire",1,0,8]
["Loire-Atlantique",6,12,1]
["Loiret",960,5,2]
["Lot",0,0,1]
["Lot-et-Garonne",3,154,1]
["Lozère",0,0,0]
["Maine-et-Loire",0,1,1]
["Manche",0,0,0]
["Marne",9,1,3]
["Martinique",0,0,0]
["Mayenne",1,0,0]
["Mayotte",0,0,0]
["Meurthe-et-Moselle",37,7,0]
["Meuse",2,0,0]
["Morbihan",23,19,13]
["Moselle",12,5,0]
["Nièvre",0,1,2]
["Nord",211,15,685]
["Nouvelle-Calédonie",0,0,3]
["Oise",0,16,0]
["Orne",0,0,80]
["Paris",4806,4690,3433]
["pas de département",80,42,62]
["Pas-de-Calais",0,2,0]
["Polynésie Française",0,0,0]
["Puy-de-Dôme",0,0,1]
["Pyrénées-Atlantiques",14,1,1]
["Pyrénées-Orientales",5,2,0]
["Réunion",1,3,3]
["Rhône",96,68,13]
["Saône-et-Loire",5,2,0]
["Sarthe",15,21,2]
["Savoie",0,2,0]
["Seine-et-Marne",9,2377,0]
["Seine-Maritime",7,1,1]
["Seine-Saint-Denis",255,417,318]
["Somme",1,2,0]
["Tarn",2,0,7]
["Tarn-et-Garonne",1,1,0]
["Territoire de Belfort",0,0,0]
["Val-d'Oise",3,0,0]
["Val-de-Marne",49,52,24]
["Var",3,4,1]
["Vaucluse",1,0,0]
["Vendée",4,9,1]
["Vienne",13,40,3]
["Vosges",1,4,1]
["Yonne",1,1,1]
["Yvelines",18,0,28]
["Total",{"$f":"SUM(B136:B238)","v":10073},{"$f":"SUM(C136:C238)","v":10230},{"$f":"SUM(D136:D238)","v":5770}]
["Source : Entrées dépôt légal"]
[]
["Nombre de monographies vidéo par support et année"]
["Type de support",2016,2017,2018]
[null,null,null,"Nbre de dépôts","Nbre de composants du dépôt"]
["vidéo dématérialisée",1840,3927,2787,2787]
["DVD vidéo",5645,10466,1523,2564]
["Blu-ray Disc",1739,3507,567,947]
["DVD-R",863,1185,433,477]
["cassette vidéo 1/2 p Bétacam-SP",1518,495,210,218]
["cassette vidéo 3/4 p U-matic (SECAM)",0,181,77,84]
["cassette Bétacam numérique",10,480,66,66]
["CD-vidéo",0,2,44,44]
["cassette vidéo 1/2 p VHS",1500,745,37,38]
["DV, DVCAM, DVCPRO",262,147,13,13]
["CDI",0,0,5,5]
["CD-R informatique",0,2,3,3]
["cassette vidéo 1/2 p Bétacam",385,5,2,2]
["cassette vidéo 1/2 p VCR",0,0,2,2]
["mémoire USB",2,0,1,1]
["bande vidéo",0,1,0,0]
["cassette vidéo 3/4 p  ",245,0,0,0]
["brochure",110,0,0,0]
["CD-audio 12 cm",34,0,0,0]
["disque optique hybride",4,0,0,0]
["cassette vidéo HI8",1,0,0,0]
["cassette vidéo 1/2 p S-VHS",0,0,0,0]
["CD Plus, CD extra",0,0,0,0]
["CD-ROM",0,0,0,0]
["planche",0,0,0,0]
["Total",{"$f":"SUM(B245:B267)","v":14158},{"$f":"SUM(C245:C269)","v":21143},{"$f":"SUM(D245:D269)","v":5770},{"$f":"SUM(E245:E269)","v":7251}]
["Source : Entrées dépôt légal"]
[]
["Nombre de périodiques vidéo par support et année"]
["Type de support",2016,2017,2018]
["DVD-R",8,16,10]
["DVD vidéo",5,4,2]
["cassette vidéo 1/2 p Bétacam-SP",0,331,0]
["cassette vidéo 3/4 p U-matic (SECAM)",0,1,0]
["vidéo dématérialisée",0,0,0]
["Blu-ray Disc",0,0,0]
["cassette vidéo 1/2 p VHS",33,0,0]
["cassette Bétacam numérique",0,0,0]
["DV, DVCAM, DVCPRO",0,0,0]
["CDI",0,0,0]
["cassette vidéo 1/2 p Bétacam",0,0,0]
["bande vidéo",0,0,0]
["cassette vidéo 3/4 p  ",0,0,0]
["CD-R informatique",0,0,0]
["brochure",0,0,0]
["CD-audio 12 cm",0,0,0]
["disque optique hybride",0,0,0]
["mémoire USB",0,0,0]
["cassette vidéo HI8",0,0,0]
["cassette vidéo 1/2 p S-VHS",0,0,0]
["CD Plus, CD extra",0,0,0]
["CD-ROM",0,0,0]
["planche",0,0,0]
["Total",{"$f":"SUM(B275:B296)","v":46},{"$f":"SUM(C275:C297)","v":352},{"$f":"SUM(D275:D297)","v":12}]
["Source : Entrées dépôt légal"]

{"sheet":"Multisupports","index":3,"n_rows":321,"n_cols":10,"rows_kept":321,"cut":false,"hidden":false,"merged":[[1,3,1,4],[1,5,1,6],[296,5,296,6],[296,3,296,4],[296,1,296,2]]}
["Nombre de dépôts et déposants de monographies, répartis selon le nombre de dépôts annuels par déposant – Multimédias multisupports"]
["Multimédias\nmultisupports",2016,null,2017,null,2018]
["Tranches","Dépôts","Déposants","Dépôts","Déposants","Dépôts","Déposants"]
["Plus de 50",0,0,0,0,0,0]
["10 à 49",515,27,446,25,307,16]
["2 à 9",410,119,381,113,336,97]
[1,273,273,218,218,174,174]
["Total",{"$f":"SUM(B4:B7)","v":1198},419,1045,356,{"$f":"SUM(F4:F7)","v":817},{"$f":"SUM(G4:G7)","v":287}]
["Source : Entrées dépôt légal"]
[]
["Liste des 10 principaux déposants de monographies par année de dépôt - Multimédias multisupports"]
[null,"Déposant",2016,null,"Déposant",2017,null,"Déposant",2018]
[null,"Editions Entrefilet ",42,null,"SODIS - MAISON DES LANGUES - DIFUSION - KLETT",40,null,"POLYGRAM COLLECTIONS",47]
[null,"Sodis - Maison des Langues - Klett",31,null,"HACHETTE EDUCATION",35,null,"RETZ (EDITIONS)",31]
[null,"Hachette éducation ",30,null,"ASSIMIL",33,null,"RULLO Barthélémy",22]
[null,"Assimil ",30,null,"RETZ (EDITIONS)",28,null,"GLENAT (EDITIONS)",21]
[null,"Editions Retz ",29,null,"PRESSES DE LA RENAISSANCE",22,null,"CLE INTERNATIONAL S/C NATHAN-SEJER",21]
[null,"Didier jeunesse ",27,null,"SOCIETE DU FIGARO",19,null,"SODIS - MAISON DES LANGUES - DIFUSION - KLETT",20]
[null,"France Loisirs",22,null,"BORDAS",19,null,"ASSIMIL",18]
[null,"Editions Didier ",22,null,"DIDIER (EDITIONS)",19,null,"DIDIER (EDITIONS)",18]
[null,"Génération 5 ",21,null,"ELLEBORE (EDITIONS)",18,null,"HATIER",16]
[null,"Gallimard jeunesse",20,null,"DIDIER JEUNESSE",17,null,"BAYARD CRER (EDITIONS)",15]
[null,"Total",{"$f":"SUM(C13:C22)","v":274},null,"Total",{"$f":"SUM(F13:F22)","v":250},null,null,{"$f":"SUM(I13:I22)","v":229}]
["Source : Entrées dépôt légal"]
[]
["Nombre de déposants de monographies par département et région déposant - Multimédias multisupports"]
["Départements",2016,2017,2018,null,"Régions",2016,2017,2018]
["Ain",2,3,1,null,"Auvergne - Rhône Alpes",35,34,{"$f":"D28+D30+D42+D54+D66+D69+D78+D82+D107+D111+D114+D33","v":23},"Ain, Allier, Ardèche, Cantal, Drôme, Haute-Loire, Haute-Savoie, Isère, Loire, Puy-de-Dôme, Rhône, Savoie"]
["Aisne",0,2,0,null,"Bourgogne - Franche-Comté",16,11,{"$f":"D48+D53+D68+D79+D98+D121+D129+D112","v":9},"Côte d'Or, Doubs, Haute-Saône, Jura, Nièvre, Saône-et-Loire, Territoire de Belfort, Yonne"]
["Allier",1,0,2,null,"Bretagne",19,15,{"$f":"D49+D58+D75+D96","v":15},"Côte d'Armor, Finistère, Ille-et-Vilaine, Morbihan"]
["Alpes-de-Haute-Provence",1,2,1,null,"Centre - Val-de-Loire",10,5,{"$f":"D45+D57+D76+D77+D84+D81","v":5},"Cher, Eure-et-Loire, Indre, Indre-et-Loire, Loiret, Loir-et-Cher"]
["Alpes-Maritimes",1,2,1,null,"Corse",3,2,{"$f":"D47","v":2}]
["Ardèche",1,2,2,null,"Grand-Est",17,11,{"$f":"D34+D36+D39+D67+D64+D94+D95+D97+D128+D90","v":13},"Ardennes, Aube, Bas-Rhin, Haute-Marne, Haut-Rhin, Marne, Meurthe-et-Moselle, Meuse, Moselle, Vosges"]
["Ardennes",0,0,0,null,"Hauts-de-France",7,6,{"$f":"D99+D101+D105+D118+D29","v":5},"Aisne, Nord, Oise, Pas-de-Calais, Somme"]
["Ariège",0,2,1,null,"Ile-de-France",196,166,{"$f":"D55+D73+D103+D115+D117+D122+D123+D130","v":130},"Essone, Hauts-de-Seine, Paris, Seine-et-Marne, Seine-Saint-Denis, Yvelines, Val-de-Marne, Val-d'Oise"]
["Aube",1,0,0,null,"Normandie",6,8,{"$f":"D41+D56+D89+D102+D116","v":4},"Calvados, Eure, Manche, Orne, Seine-Maritime"]
["Aude",0,2,0,null,"Nouvelle-Aquitaine",38,30,{"$f":"D43+D44+D46+D50+D51+D52+D61+D70+D80+D86+D108+D127","v":28},"Charente, Charente-Maritime, Corrèze, Creuse, Deux-Sèvres, Dordogne, Gironde, Haute-Vienne, Landes, Lot-et-Garonne, Pyrénées-Atlantiques, Vienne"]
["Aveyron",1,1,1,null,"Occitanie",23,29,{"$f":"D35+D37+D38+D59+D60+D65+D72+D74+D85+D87+D109+D119+D120","v":26},"Ariège, Aude, Aveyron, Gard, Gers, Haute-Garonne, Hautes-Pyrénées, Hérault, Lot, Lozère, Pyrénées-Orientales, Tarn, Tarn-et-Garonne"]
["Bas-Rhin",6,3,6,null,"Outre-mer",8,6,{"$f":"D62+D63+D91+D93+D100+D106+D110","v":5},"Guadeloupe, Guyane, Martinique, Mayotte, Nouvelle-Calédonie, Polynésie française, Réunion, Saint-Pierre-et-Miquelon"]
["Bouches-du-Rhône",10,8,7,null,"Pays de la Loire",12,8,{"$f":"D83+D88+D92+D113+D126","v":6},"Loire-Atlantique, Maine-et-Loire, Mayenne, Sarthe, Vendée"]
["Calvados",3,2,1,null,"Provence-Alpes-Côte d'Azur",20,18,{"$f":"D31+D32+D40+D71+D124+D125","v":13},"Alpes-de-Haute-Provence, Alpes-Maritimes, Bouches-du-Rhône, Hautes-Alpes, Var, Vaucluse"]
["Cantal",2,4,2,null,"pas de département spécifié",9,7,{"$f":"D104","v":3}]
["Charente",0,1,3,null,"Total",419,356,{"$f":"SUM(I28:I42)","v":287}]
["Charente-Maritime",3,3,3]
["Cher",0,1,2]
["Corrèze",1,1,1]
["Corse",3,2,2]
["Côte-d'Or",4,1,0]
["Côtes-d'Armor",2,4,3]
["Creuse",0,0,1]
["Deux-Sèvres",1,2,1]
["Dordogne",5,5,2]
["Doubs",4,2,3]
["Drôme",2,4,2]
["Essonne",6,5,5]
["Eure",0,1,1]
["Eure-et-Loir",1,0,0]
["Finistère",6,4,5]
["Gard",4,0,1]
["Gers",0,0,1]
["Gironde",10,7,4]
["Guadeloupe",1,2,1]
["Guyane",0,0,0]
["Haut-Rhin",3,3,3]
["Haute-Garonne",4,9,9]
["Haute-Loire",0,1,0]
["Haute-Marne",0,0,0]
["Haute-Saône",0,1,0]
["Haute-Savoie",4,4,2]
["Haute-Vienne",3,0,2]
["Hautes-Alpes",1,0,0]
["Hautes-Pyrénées",1,1,0]
["Hauts-de-Seine",19,17,15]
["Hérault",4,2,5]
["Ille-et-Vilaine",8,6,3]
["Indre",2,0,0]
["Indre-et-Loire",4,3,0]
["Isère",5,5,2]
["Jura",2,1,0]
["Landes",5,3,2]
["Loir-et-Cher",0,1,0]
["Loire",3,2,1]
["Loire-Atlantique",4,4,2]
["Loiret",3,0,3]
["Lot",0,2,2]
["Lot-et-Garonne",0,0,1]
["Lozère",0,0,1]
["Maine-et-Loire",4,1,3]
["Manche",0,1,0]
["Marne",1,1,2]
["Martinique",1,1,2]
["Mayenne",2,1,0]
["Mayotte",0,0,0]
["Meurthe-et-Moselle",4,2,0]
["Meuse",1,1,0]
["Morbihan",3,1,4]
["Moselle",1,1,0]
["Nièvre",1,0,0]
["Nord",4,3,3]
["Nouvelle-Calédonie",2,0,0]
["Oise",1,0,1]
["Orne",0,0,0]
["Paris",143,120,89]
["pas de département",9,7,3]
["Pas-de-Calais",0,0,1]
["Polynésie française",0,0,0]
["Puy-de-Dôme",5,0,2]
["Pyrénées-Atlantiques",2,2,3]
["Pyrénées-Orientales",4,3,1]
["Réunion",4,3,2]
["Rhône",9,6,6]
["Saône-et-Loire",3,3,6]
["Sarthe",0,1,0]
["Savoie",1,3,1]
["Seine-et-Marne",3,5,5]
["Seine-Maritime",3,4,2]
["Seine-Saint-Denis",7,6,2]
["Somme",2,1,0]
["Tarn",5,6,3]
["Tarn-et-Garonne",0,1,1]
["Territoire de Belfort",1,2,0]
["Val-d'Oise",1,1,1]
["Val-de-Marne",11,9,8]
["Var",5,4,3]
["Vaucluse",2,2,1]
["Vendée",2,1,1]
["Vienne",8,6,5]
["Vosges",0,0,2]
["Yonne",1,1,0]
["Yvelines",6,3,5]
["Total",{"$f":"SUM(B28:B130)","v":419},{"$f":"SUM(C28:C130)","v":356},{"$f":"SUM(D28:D130)","v":287}]
["Source : Entrées dépôt légal"]
[]
["Nombre de dépôts de monographies par département et région déposant - Multimédias multisupports"]
["Départements",2016,2017,2018,null,"Régions",2016,2017,2018]
["Ain",2,3,1,null,"Auvergne - Rhône Alpes",133,66,{"$f":"D136+D138+D150+D162+D174+D177+D186+D190+D215+D219+D222+D141","v":58},"Ain, Allier, Ardèche, Cantal, Drôme, Haute-Loire, Haute-Savoie, Isère, Loire, Puy-de-Dôme, Rhône, Savoie"]
["Aisne",0,2,0,null,"Bourgogne - Franche-Comté",44,17,{"$f":"D156+D161+D176+D187+D206+D229+D237+D220","v":20},"Côte d'Or, Doubs, Haute-Saône, Jura, Nièvre, Saône-et-Loire, Territoire de Belfort, Yonne"]
["Allier",1,0,2,null,"Bretagne",23,23,{"$f":"D157+D166+D183+D204","v":18},"Côte d'Armor, Finistère, Ille-et-Vilaine, Morbihan"]
["Alpes-de-Haute-Provence",1,14,3,null,"Centre - Val-de-Loire",11,7,{"$f":"D153+D165+D184+D185+D192+D189","v":5},"Cher, Eure-et-Loire, Indre, Indre-et-Loire, Loiret, Loir-et-Cher"]
["Alpes-Maritimes",1,4,1,null,"Corse",3,3,{"$f":"D155","v":2}]
["Ardèche",6,3,3,null,"Grand-Est",26,23,{"$f":"D142+D144+D147+D175+D172+D202+D203+D205+D236+D198","v":48},"Ardennes, Aube, Bas-Rhin, Haute-Marne, Haut-Rhin, Marne, Meurthe-et-Moselle, Meuse, Moselle, Vosges"]
["Ardennes",0,0,0,null,"Hauts-de-France",9,6,{"$f":"D207+D209+D213+D226+D137","v":10},"Aisne, Nord, Oise, Pas-de-Calais, Somme"]
["Ariège",0,2,1,null,"Ile-de-France",712,669,{"$f":"D163+D181+D211+D223+D225+D230+D231+D238","v":469},"Essone, Hauts-de-Seine, Paris, Seine-et-Marne, Seine-Saint-Denis, Yvelines, Val-de-Marne, Val-d'Oise"]
["Aube",1,0,0,null,"Normandie",6,9,{"$f":"D149+D164+D197+D210+D224","v":4},"Calvados, Eure, Manche, Orne, Seine-Maritime"]
["Aude",0,3,0,null,"Nouvelle-Aquitaine",98,92,{"$f":"D151+D152+D154+D158+D159+D160+D169+D178+D188+D194+D216+D235","v":65},"Charente, Charente-Maritime, Corrèze, Creuse, Deux-Sèvres, Dordogne, Gironde, Haute-Vienne, Landes, Lot-et-Garonne, Pyrénées-Atlantiques, Vienne"]
["Aveyron",1,1,1,null,"Occitanie",52,55,{"$f":"D143+D145+D146+D167+D168+D173+D180+D182+D193+D195+D217+D227+D228","v":58},"Ariège, Aude, Aveyron, Gard, Gers, Haute-Garonne, Hautes-Pyrénées, Hérault, Lot, Lozère, Pyrénées-Orientales, Tarn, Tarn-et-Garonne"]
["Bas-Rhin",8,8,17,null,"Outre-mer",9,8,{"$f":"D170+D171+D199+D201+D208+D214+D218","v":6},"Guadeloupe, Guyane, Martinique, Mayotte, Nouvelle-Calédonie, Polynésie française, Réunion, Saint-Pierre-et-Miquelon"]
["Bouches-du-Rhône",24,9,15,null,"Pays de la Loire",18,11,{"$f":"D191+D196+D200+D221+D234","v":23},"Loire-Atlantique, Maine-et-Loire, Mayenne, Sarthe, Vendée"]
["Calvados",3,2,1,null,"Provence-Alpes-Côte d'Azur",41,42,{"$f":"D139+D140+D148+D179+D232+D233","v":25},"Alpes-de-Haute-Provence, Alpes-Maritimes, Bouches-du-Rhône, Hautes-Alpes, Var, Vaucluse"]
["Cantal",2,11,2,null,"pas de département spécifié",13,14,{"$f":"D212","v":6}]
["Charente",0,1,4,null,"Total",1198,1045,{"$f":"SUM(I136:I150)","v":817}]
["Charente-Maritime",4,4,3]
["Cher",0,1,2]
["Corrèze",2,1,1]
["Corse",3,3,2]
["Côte-d'Or",4,2,0]
["Côtes-d'Armor",4,6,4]
["Creuse",0,0,1]
["Deux-Sèvres",1,5,1]
["Dordogne",8,5,2]
["Doubs",4,2,3]
["Drôme",3,9,2]
["Essonne",8,25,55]
["Eure",0,1,1]
["Eure-et-Loir",1,0,0]
["Finistère",6,7,6]
["Gard",7,0,1]
["Gers",0,0,1]
["Gironde",14,11,6]
["Guadeloupe",2,4,2]
["Guyane",0,0,0]
["Haut-Rhin",6,9,24]
["Haute-Garonne",14,18,29]
["Haute-Loire",0,1,0]
["Haute-Marne",0,0,0]
["Haute-Saône",0,1,0]
["Haute-Savoie",7,6,4]
["Haute-Vienne",4,0,3]
["Hautes-Alpes",1,0,0]
["Hautes-Pyrénées",2,1,0]
["Hauts-de-Seine",70,56,53]
["Hérault",10,14,13]
["Ille-et-Vilaine",9,9,3]
["Indre",2,0,0]
["Indre-et-Loire",4,5,0]
["Isère",25,15,26]
["Jura",4,1,0]
["Landes",6,3,2]
["Loir-et-Cher",0,1,0]
["Loire",4,2,1]
["Loire-Atlantique",7,7,4]
["Loiret",4,0,3]
["Lot",0,2,2]
["Lot-et-Garonne",0,0,1]
["Lozère",0,0,1]
["Maine-et-Loire",6,1,18]
["Manche",0,1,0]
["Marne",1,1,2]
["Martinique",1,1,2]
["Mayenne",3,1,0]
["Mayotte",0,0,0]
["Meurthe-et-Moselle",8,3,0]
["Meuse",1,1,0]
["Morbihan",4,1,5]
["Moselle",1,1,0]
["Nièvre",1,0,0]
["Nord",6,3,7]
["Nouvelle-Calédonie",2,0,0]
["Oise",1,0,1]
["Orne",0,0,0]
["Paris",532,478,297]
["pas de département",13,14,6]
["Pas-de-Calais",0,0,2]
["Polynésie française",0,0,0]
["Puy-de-Dôme",5,1,2]
["Pyrénées-Atlantiques",2,1,4]
["Pyrénées-Orientales",7,3,2]
["Réunion",4,3,2]
["Rhône",57,12,9]
["Saône-et-Loire",28,7,17]
["Sarthe",0,1,0]
["Savoie",21,3,6]
["Seine-et-Marne",33,51,26]
["Seine-Maritime",3,5,2]
["Seine-Saint-Denis",10,11,2]
["Somme",2,1,0]
["Tarn",11,8,6]
["Tarn-et-Garonne",0,3,1]
["Territoire de Belfort",2,2,0]
["Val-d'Oise",1,1,1]
["Val-de-Marne",49,44,27]
["Var",9,8,5]
["Vaucluse",5,7,1]
["Vendée",2,1,1]
["Vienne",57,61,37]
["Vosges",0,0,5]
["Yonne",1,2,0]
["Yvelines",9,3,8]
["Total",{"$f":"SUM(B136:B238)","v":1198},{"$f":"SUM(C136:C238)","v":1045},{"$f":"SUM(D136:D238)","v":817}]
["Source : Entrées dépôt légal"]
[]
["Nombre de monographies multimédias multisupports par support et année"]
["Type de support",2016,2017,2018]
["livre",1092,872,643]
["CD-audio 12 cm",828,690,508]
["DVD vidéo",297,181,124]
["brochure",109,47,76]
["CD-ROM",132,89,57]
["CD-MP3",55,58,48]
["musique imprimée",44,31,45]
["DVD-ROM",68,28,36]
["mémoire USB",43,52,22]
["DVD-R",12,12,10]
["fichier pédagogique",18,20,9]
["objets divers",33,15,9]
["braille",3,8,8]
["planche",152,11,8]
["classeur à feuillets mobiles",34,9,6]
["poster",49,6,5]
["affiche-texte",10,0,4]
["carte imprimée",210,4,4]
["disque microsillon",2,5,3]
["feuille",289,10,3]
["fiche",1713,3,3]
["CD Plus, CD extra",1,4,2]
["document électronique dématérialisé",0,4,2]
["livre d'artiste",0,6,2]
["Blu-ray Disc",34,2,1]
["carte",513,5,1]
["carte postale",50,0,1]
["cassette audio analogique",0,0,1]
["CD-audio 8 cm",5,4,1]
["CD-R audio",5,3,1]
["CD-R informatique",9,4,1]
["CD-ROM 8 cm",5,0,1]
["transparent",0,0,1]
["vidéodisque interactif",0,0,1]
["affiche-image",4,2,0]
["Blu-ray Disc (consoles de jeux)",0,1,0]
["Blu-ray disc informatique",1,0,0]
["cassette vidéo 1/2 p VHS",0,1,0]
["CD-photo",1,0,0]
["dessin",40,0,0]
["diapositives",24,0,0]
["disque optique hybride",0,0,0]
["DVD audio",0,0,0]
["e-card",1,0,0]
["estampe",0,0,0]
["Maquette de décor ou de costume",0,0,0]
["miniature",0,1,0]
["photographie",70,1,0]
["plan imprimé",1,0,0]
["Total",{"$f":"SUM(B244:B287)","v":5886},{"$f":"SUM(C244:C287)","v":2187},{"$f":"SUM(D244:D292)","v":1647}]
["Source : Entrées dépôt légal"]
[]
["Nombre de périodiques multimédias multisupports par support et année"]
["Type de support",2016,null,2017,null,2018]
[null,"Nbre de dépôts","Nbre composants","Nbre de dépôts","Nbre de composants","Nombre de dépôts","Nombre de composants"]
["brochure","/",519,"/",null,"/",324]
["CD-audio 12 cm","/",181,"/",null,"/",142]
["livre","/",20,"/",null,"/",41]
["DVD vidéo","/",162,"/",null,"/",32]
["CD Plus, CD extra","/",14,"/",null,"/",12]
["CD-ROM","/",11,"/",null,"/",7]
["mémoire USB","/",2,"/",null,"/",7]
["musique imprimée","/",0,"/",null,"/",6]
["planche","/",33,"/",null,"/",3]
["feuille","/",4,"/",null,"/",1]
["poster","/",2,"/",null,"/",1]
["affiche-texte","/",0,"/",null,"/",0]
["bande perforée","/",0,"/",null,"/",0]
["cassette audio-analogique","/",6,"/",null,"/",0]
["CD-R audio","/",0,"/",null,"/",0]
["diapositives","/",0,"/",null,"/",0]
["disque microsillon","/",0,"/",null,"/",0]
["DVD-R","/",0,"/",null,"/",0]
["DVD-ROM","/",1,"/",null,"/",0]
["DVD-ROM (consoles de jeux)","/",0,"/",null,"/",0]
["objets divers","/",0,"/",null,"/",0]
["Total",427,{"$f":"SUM(C299:C319)","v":955},379,null,325,{"$f":"SUM(G299:G319)","v":576}]
["Source : Entrées dépôt légal"]

{"sheet":"Monosupport","index":4,"n_rows":285,"n_cols":10,"rows_kept":285,"cut":false,"hidden":false,"merged":[[271,3,271,4],[248,3,248,4],[1,3,1,4],[1,5,1,6],[11,1,11,2],[11,3,11,4],[11,5,11,6]]}
["Nombre de dépôts et déposants de monographies, répartis selon le nombre de dépôts annuels par déposant – Multimédias monosupport"]
["Multimédias\nmonosupport",2016,null,2017,null,2018]
["Tranches","Dépôts","Déposants","Dépôts","Déposants","Dépôts","Déposants"]
["Plus de 50",645,6,405,3,496,3]
["10 à 49",296,14,192,11,322,16]
["2 à 9",132,32,106,26,100,26]
[1,39,39,36,36,27,27]
["Total",{"$f":"SUM(B4:B7)","v":1112},91,739,76,{"$f":"SUM(F4:F7)","v":945},{"$f":"SUM(G4:G7)","v":72}]
["Source : Entrées dépôt légal"]
[]
["Nombre de dépôts et déposants de périodiques, répartis selon le nombre de dépôts annuels par déposant – Multimédias monosupport"]
["Multimédias\nmonosupport",2016,null,2017,null,2017]
["Tranches","Dépôts","Déposants","Dépôts (titres)","Déposants","Dépôts (titres)","Déposants"]
["Plus de 10",null,null,83,3,80,3]
["5 à 10",null,null,6,1,0,0]
["2 à 4",null,null,45,18,30,10]
[1,41,41,31,31,29,29]
["Total",{"$f":"SUM(B14:B17)","v":41},41,{"$f":"SUM(D14:D17)","v":165},{"$f":"SUM(E14:E17)","v":53},{"$f":"SUM(F14:F17)","v":139},{"$f":"SUM(G14:G17)","v":42}]
["Source : Entrées dépôt légal"]
[]
["Liste des 10 principaux déposants de monographies par année de dépôt - Multimédias monosupport"]
[null,"Déposant",2016,null,"Déposant",2017,null,"Déposant",2018]
[null,"Global Game Jam",200,null,"Global Game Jam",261,null,"Global Game Jam",318]
[null,"Ubisoft ",156,null,"EBP INFORMATIQUE",92,null,"EBP INFORMATIQUE",118]
[null,"EBP Informatique ",106,null,"FOCUS HOME INTERACTIVE",52,null,"GENERATION 5",60]
[null,"Bigben interactive",76,null,"ISART Digital",33,null,"Hits Playtime",32]
[null,"Activision Blizzard",56,null,"NAMCO BANDAI PARTNERS FRANCE",24,null,"SONY COMPUTER ENTERTAINMENT JEUX",28]
[null,"Nintendo France",51,null,"CDIP",22,null,"BIGBEN INTERACTIVE",25]
[null,"CFPB",46,null,"BETHESDA SOFTWORKS",19,null,"NAMCO BANDAI PARTNERS FRANCE",25]
[null,"canardpc.com",40,null,"SQUARE ENIX FRANCE",17,null,"ACTIVISION BLIZZARD",25]
[null,"Avanquest France",28,null,"UBISOFT",15,null,"CANARDPC.COM",24]
[null,"Pierre Corbinais ",27,null,"SONY COMPUTER ENTERTAINMENT JEUX",15,null,"FOCUS HOME INTERACTIVE",22]
[null,"Total",{"$f":"SUM(C23:C32)","v":786},null,"Total",{"$f":"SUM(F23:F32)","v":550},null,null,{"$f":"SUM(I23:I32)","v":677}]
["Source : Entrées dépôt légal"]
[]
["Nombre de déposants de monographies par département et région déposant - Multimédias monosupport"]
["Départements",2016,2017,2018,null,"Régions",2016,2017,2018]
["Ain",0,1,0,null,"Auvergne - Rhône Alpes",8,6,{"$f":"D38+D40+D43+D52+D64+D76+D79+D88+D92+D115+D119+D122","v":4},"Ain, Allier, Ardèche, Cantal, Drôme, Haute-Loire, Haute-Savoie, Isère, Loire, Puy-de-Dôme, Rhône, Savoie"]
["Aisne",0,0,0,null,"Bourgogne - Franche-Comté",2,1,{"$f":"D58+D63+D78+D89+D107+D120+D129+D137","v":1},"Côte d'Or, Doubs, Haute-Saône, Jura, Nièvre, Saône-et-Loire, Territoire de Belfort, Yonne"]
["Allier",0,0,0,null,"Bretagne",1,1,{"$f":"D59+D68+D85+D105","v":1},"Côte d'Armor, Finistère, Ille-et-Vilaine, Morbihan"]
["Alpes de Haute Provence",0,0,0,null,"Centre - Val-de-Loire",0,1,{"$f":"D55+D67+D86+D87+D94+D91","v":0},"Cher, Eure-et-Loire, Indre, Indre-et-Loire, Loiret, Loir-et-Cher"]
["Alpes-Maritimes",0,1,1,null,"Corse",0,0,{"$f":"D57","v":0}]
["Ardèche",0,0,0,null,"Grand-Est",6,2,{"$f":"D44+D46+D49+D77+D74+D100+D103+D104+D106+D136","v":2},"Ardennes, Aube, Bas-Rhin, Haute-Marne, Haut-Rhin, Marne, Meurthe-et-Moselle, Meuse, Moselle, Vosges"]
["Ardennes",0,0,0,null,"Hauts-de-France",2,5,{"$f":"D39+D108+D110+D114+D126","v":4},"Aisne, Nord, Oise, Pas-de-Calais, Somme"]
["Ariège",0,0,0,null,"Ile-de-France",48,39,{"$f":"D65+D83+D112+D123+D125+D138+D130+D131","v":37},"Essone, Hauts-de-Seine, Paris, Seine-et-Marne, Seine-Saint-Denis, Val-de-Marne, Val-d'Oise, Yvelines"]
["Aube",0,0,0,null,"Normandie",1,3,{"$f":"D51+D66+D99+D111+D124","v":1},"Calvados, Eure, Manche, Orne, Seine-Maritime"]
["Aude",0,0,0,null,"Nouvelle-Aquitaine",4,2,{"$f":"D53+D54+D56+D60+D61+D62+D71+D80+D90+D96+D116+D135","v":5},"Charente, Charente-Maritime, Corrèze, Creuse, Deux-Sèvres, Dordogne, Gironde, Haute-Vienne, Landes, Lot-et-Garonne, Pyrénées-Atlantiques, Vienne"]
["Aveyron",0,0,0,null,"Occitanie",3,3,{"$f":"D45+D47+D48+D69+D70+D84+D95+D97+D75+D117+D127+D128+D82","v":4},"Ariège, Aude, Aveyron, Gard, Gers, Haute-Garonne, Hautes-Pyrénées, Hérault, Lot, Lozère, Pyrénées-Orientales, Tarn, Tarn-et-Garonne"]
["Bas-Rhin",2,0,1,null,"Outre-mer",1,1,{"$f":"D72+D73+D101+D109+D118","v":0},"Guadeloupe, Guyane, Martinique, Mayotte, Nouvelle-Calédonie, Polynésie française, Réunion, Saint-Pierre-et-Miquelon"]
["Bouches-du-Rhône",3,6,3,null,"Pays de la Loire",2,2,{"$f":"D93+D98+D102+D121+D134","v":4},"Loire-Atlantique, Maine-et-Loire, Mayenne, Sarthe, Vendée"]
["Calvados",0,1,0,null,"Provence-Alpes-Côte d'Azur",5,7,{"$f":"D41+D42+D50+D81+D132+D133","v":4},"Alpes-de-Haute-Provence, Alpes-Maritimes, Bouches-du-Rhône, Hautes-Alpes, Var, Vaucluse"]
["Cantal",0,0,0,null,"pas de département spécifié",8,3,{"$f":"D113","v":5}]
["Charente",0,0,0,null,"Total",91,76,{"$f":"SUM(I38:I52)","v":72}]
["Charente-Maritime",0,1,1]
["Cher",0,0,0]
["Corrèze",0,0,0]
["Corse",0,0,0]
["Cote d'Or",2,1,1]
["Côtes-d'Armor",0,0,0]
["Creuse",0,0,0]
["Deux-Sèvres",0,0,0]
["Dordogne",0,0,0]
["Doubs",0,0,0]
["Drome",0,0,0]
["Essonne",0,0,0]
["Eure",0,1,1]
["Eure-et-Loire",0,0,0]
["Finistère",0,0,0]
["Gard",0,0,0]
["Gers",0,1,1]
["Gironde",3,1,2]
["Guadeloupe",1,0,0]
["Guyane",0,0,0]
["Haut-Rhin",0,0,0]
["Haute-Garonne",0,1,0]
["Haute-Loire",0,0,0]
["Haute-Marne",0,0,0]
["Haute-Saône",0,0,0]
["Haute-Savoie",0,0,0]
["Haute-Vienne",0,0,0]
["Hautes-Alpes",0,0,0]
["Hautes-Pyrénées",0,0,0]
["Hauts-de-Seine",11,5,9]
["Hérault",2,1,2]
["Ille-et-Vilaine",0,1,1]
["Indre",0,0,0]
["Indre-et-Loire",0,0,0]
["Isère",0,1,0]
["Jura",0,0,0]
["Landes",0,0,0]
["Loir-et-Cher",0,1,0]
["Loire",1,1,1]
["Loire-Atlantique",0,1,0]
["Loiret",0,0,0]
["Lot",0,0,0]
["Lot-et-Garonne",0,0,0]
["Lozère",0,0,0]
["Maine-et-Loire",0,0,1]
["Manche",0,0,0]
["Marne",0,0,0]
["Martinique",0,0,0]
["Mayenne",0,0,0]
["Meurthe-et-Moselle",2,1,1]
["Meuse",0,0,0]
["Morbihan",1,0,0]
["Moselle",2,1,0]
["Nièvre",0,0,0]
["Nord",2,3,2]
["Nouvelle-Calédonie",0,0,0]
["Oise",0,1,0]
["Orne",0,0,0]
["Paris",25,21,15]
["pas de département",8,3,5]
["Pas-de-Calais",0,1,2]
["Puy-de-Dôme",0,0,0]
["Pyrénées-Atlantiques",0,0,0]
["Pyrénées-Orientales",0,0,0]
["Réunion",0,1,0]
["Rhône",7,3,2]
["Saône-et-Loire",0,0,0]
["Sarthe",0,0,0]
["Savoie",0,0,1]
["Seine-et-Marne",1,1,0]
["Seine-Maritime",1,1,0]
["Seine-Saint-Denis",3,6,7]
["Somme",0,0,0]
["Tarn",1,0,1]
["Tarn-et-Garonne",0,0,0]
["Territoire de Belfort",0,0,0]
["Val-d'Oise",2,2,1]
["Val-de-Marne",3,1,3]
["Var",2,0,0]
["Vaucluse",0,0,0]
["Vendée",2,1,3]
["Vienne",1,0,2]
["Vosges",0,0,0]
["Yonne",0,0,0]
["Yvelines",3,3,2]
["Total",{"$f":"SUM(B38:B138)","v":91},{"$f":"SUM(C38:C138)","v":76},{"$f":"SUM(D38:D138)","v":72}]
["Source : Entrées dépôt légal"]
[]
["Nombre de dépôts de monographies par département et région déposant - Multimédias monosupport"]
["Départements",2016,2017,2018,null,"Régions",2016,2017,2018]
["Ain",0,1,0,null,"Auvergne - Rhône Alpes",47,42,{"$f":"D144+D146+D149+D158+D170+D182+D185+D194+D198+D221+D225+D228","v":97},"Ain, Allier, Ardèche, Cantal, Drôme, Haute-Loire, Haute-Savoie, Isère, Loire, Puy-de-Dôme, Rhône, Savoie"]
["Aisne",0,0,0,null,"Bourgogne - Franche-Comté",9,2,{"$f":"D164+D169+D184+D195+D213+D226+D235+D243","v":11},"Côte d'Or, Doubs, Haute-Saône, Jura, Nièvre, Saône-et-Loire, Territoire de Belfort, Yonne"]
["Allier",0,0,0,null,"Bretagne",1,8,{"$f":"D165+D174+D191+D211","v":1},"Côte d'Armor, Finistère, Ille-et-Vilaine, Morbihan"]
["Alpes-de-Haute-Provence",0,0,0,null,"Centre - Val-de-Loire",0,1,{"$f":"D161+D173+D192+D193+D200+D197","v":0},"Cher, Eure-et-Loire, Indre, Indre-et-Loire, Loiret, Loir-et-Cher"]
["Alpes-Maritimes",0,1,4,null,"Corse",0,0,{"$f":"D163","v":0}]
["Ardèche",0,0,0,null,"Grand-Est",8,2,{"$f":"D150+D152+D155+D183+D180+D206+D209+D210+D212+D242","v":2},"Ardennes, Aube, Bas-Rhin, Haute-Marne, Haut-Rhin, Marne, Meurthe-et-Moselle, Meuse, Moselle, Vosges"]
["Ardennes",0,0,0,null,"Hauts-de-France",77,27,{"$f":"D145+D214+D216+D220+D232","v":34},"Aisne, Nord, Oise, Pas-de-Calais, Somme"]
["Ariège",0,0,0,null,"Ile-de-France",878,612,{"$f":"D171+D189+D218+D229+D231+D244+D236+D237","v":741},"Essone, Hauts-de-Seine, Paris, Seine-et-Marne, Seine-Saint-Denis, Yvelines, Val-de-Marne, Val-d'Oise"]
["Aube",0,0,0,null,"Normandie",1,3,{"$f":"D157+D172+D205+D217+D230","v":1},"Calvados, Eure, Manche, Orne, Seine-Maritime"]
["Aude",0,0,0,null,"Nouvelle-Aquitaine",7,2,{"$f":"D159+D160+D162+D166+D167+D168+D177+D186+D196+D202+D222+D241","v":29},"Charente, Charente-Maritime, Corrèze, Creuse, Deux-Sèvres, Dordogne, Gironde, Haute-Vienne, Landes, Lot-et-Garonne, Pyrénées-Atlantiques, Vienne"]
["Aveyron",0,0,0,null,"Occitanie",19,4,{"$f":"D151+D153+D154+D175+D176+D190+D201+D203+D181+D223+D233+D234+D188","v":5},"Ariège, Aude, Aveyron, Gard, Gers, Haute-Garonne, Hautes-Pyrénées, Hérault, Lot, Lozère, Pyrénées-Orientales, Tarn, Tarn-et-Garonne"]
["Bas-Rhin",4,0,1,null,"Outre-mer",1,6,{"$f":"D178+D179+D207+D215+D224","v":0},"Guadeloupe, Guyane, Martinique, Mayotte, Nouvelle-Calédonie, Polynésie française, Réunion, Saint-Pierre-et-Miquelon"]
["Bouches-du-Rhône",34,12,6,null,"Pays de la Loire",5,8,{"$f":"D199+D204+D208+D227+D240","v":6},"Loire-Atlantique, Maine-et-Loire, Mayenne, Sarthe, Vendée"]
["Calvados",0,1,0,null,"Provence-Alpes-Côte d'Azur",38,13,{"$f":"D147+D148+D156+D187+D238+D239","v":10},"Alpes-de-Haute-Provence, Alpes-Maritimes, Bouches-du-Rhône, Hautes-Alpes, Var, Vaucluse"]
["Cantal",0,0,0,null,"pas de département spécifié",21,9,{"$f":"D219","v":8}]
["Charente",0,0,0,null,"Total",1112,739,{"$f":"SUM(I144:I158)","v":945}]
["Charente-Maritime",0,1,1]
["Cher",0,0,0]
["Corrèze",0,0,0]
["Corse",0,0,0]
["Côte-d'Or",9,2,11]
["Côtes-d'Armor",0,0,0]
["Creuse",0,0,0]
["Deux-Sèvres",0,0,0]
["Dordogne",0,0,0]
["Doubs",0,0,0]
["Drôme",0,0,0]
["Essonne",0,0,0]
["Eure",0,1,1]
["Eure-et-Loir",0,0,0]
["Finistère",0,0,0]
["Gard",0,0,0]
["Gers",0,1,1]
["Gironde",6,1,4]
["Guadeloupe",1,0,0]
["Guyane",0,0,0]
["Haut-Rhin",0,0,0]
["Haute-Garonne",0,2,0]
["Haute-Loire",0,0,0]
["Haute-Marne",0,0,0]
["Haute-Saône",0,0,0]
["Haute-Savoie",0,0,0]
["Haute-Vienne",0,0,0]
["Hautes-Alpes",0,0,0]
["Hautes-Pyrénées",0,0,0]
["Hauts-de-Seine",164,32,64]
["Hérault",18,1,3]
["Ille-et-Vilaine",0,8,1]
["Indre",0,0,0]
["Indre-et-Loire",0,0,0]
["Isère",0,1,0]
["Jura",0,0,0]
["Landes",0,0,0]
["Loir-et-Cher",0,1,0]
["Loire",5,11,4]
["Loire-Atlantique",0,1,0]
["Loiret",0,0,0]
["Lot",0,0,0]
["Lot-et-Garonne",0,0,0]
["Lozère",0,0,0]
["Maine-et-Loire",0,0,2]
["Manche",0,0,0]
["Marne",0,0,0]
["Martinique",0,0,0]
["Mayenne",0,0,0]
["Meurthe-et-Moselle",2,1,1]
["Meuse",0,0,0]
["Morbihan",1,0,0]
["Moselle",2,1,0]
["Nièvre",0,0,0]
["Nord",77,25,26]
["Nouvelle-Calédonie",0,0,0]
["Oise",0,1,0]
["Orne",0,0,0]
["Paris",509,373,478]
["pas de département",21,9,8]
["Pas-de-Calais",0,1,8]
["Puy-de-Dôme",0,0,0]
["Pyrénées-Atlantiques",0,0,0]
["Pyrénées-Orientales",0,0,0]
["Réunion",0,6,0]
["Rhône",42,29,33]
["Saône-et-Loire",0,0,0]
["Sarthe",0,0,0]
["Savoie",0,0,60]
["Seine-et-Marne",5,1,0]
["Seine-Maritime",1,1,0]
["Seine-Saint-Denis",8,74,58]
["Somme",0,0,0]
["Tarn",1,0,1]
["Tarn-et-Garonne",0,0,0]
["Territoire de Belfort",0,0,0]
["Val-d'Oise",69,29,12]
["Val-de-Marne",12,3,10]
["Var",4,0,0]
["Vaucluse",0,0,0]
["Vendée",5,7,4]
["Vienne",1,0,24]
["Vosges",0,0,0]
["Yonne",0,0,0]
["Yvelines",111,100,119]
["Total",{"$f":"SUM(B144:B244)","v":1112},{"$f":"SUM(C144:C244)","v":739},{"$f":"SUM(D144:D244)","v":945}]
["Source : Entrées dépôt légal"]
[]
["Nombre de monographies multimédias monosupport par support et année"]
["Type de support",2016,2017,2018]
[null,null,null,"Nbre de dépôts","Nbre de composants du dépôt"]
["document électronique dématérialisé",399,434,543,543]
["DVD-ROM",166,136,140,147]
["Blu-ray Disc (consoles de jeux)",124,155,91,92]
["DVD-ROM (consoles de jeux)",145,87,44,44]
["CD-ROM",124,207,34,34]
["mémoire USB",57,162,31,31]
["CD-R informatique",89,75,27,27]
["cartouche jeux vidéo",108,32,24,24]
["DVD-R",6,29,10,10]
["Blu-ray disc  ",0,0,1,2]
["DVD vidéo",0,8,0,0]
["carte mémoire",0,2,0,0]
["puce RFID",14,0,0,0]
["CD audio 12 cm",3,0,0,0]
["CD-ROM 8 cm",1,0,0,0]
["vidéodisque interactif",1,0,0,0]
["Total",{"$f":"SUM(B251:B266)","v":1237},{"$f":"SUM(C251:C266)","v":1327},945,{"$f":"SUM(E251:E266)","v":954}]
["Source : Entrées dépôt légal"]
[]
[]
["Nombre de périodiques multimédias monosupport par support et année"]
["Type de support",2016,2017,2018]
[null,null,null,"Nbre de dépôts","Nbre composants"]
["CD-ROM",364,300,530,530]
["mémoire USB",101,307,371,371]
["CD-R informatique",183,87,266,268]
["DVD-ROM",142,179,222,222]
["Blu-ray Disc ",26,16,32,63]
["Blu-ray Disc informatique ",12,8,30,30]
["DVD-R",8,2,9,9]
["document électronique dématérialisé",0,0,4,4]
["brochure",2,0,0,0]
["CD audio 12 cm",1,0,0,0]
["Total",839,899,{"$f":"SUM(D274:D283)","v":1464},{"$f":"SUM(E274:E283)","v":1497}]
["Source : Entrées dépôt légal"]